bitfinex/quotes_SOLUSD_20241231
["timestamp","ask_amount","ask_price","bid_price","bid_amount"]
[1735625727182,1.5435,189.17,189.04,38.83356756]
[1735625728060,1.5435,189.17,189.04,39.62672238]
[1735625728577,1.5435,189.17,189.03,15.05668356]
[1735625729394,1.5435,189.17,189.05,23.776884]
[1735625731396,1.5435,189.17,189.04,0.7932398]
[1735625734502,20.0,189.13,189.03,23.776884]
[1735625734677,20.0,189.13,189.02,15.84991728]
[1735625735072,20.0,189.13,189.02,0.79323372]
[1735625735386,1.5435,189.12,189.03,15.05668356]
[1735625735566,1.5435,189.12,189.04,23.776884]
[1735625735766,1.5435,189.12,189.08,23.776884]
[1735625735970,7.5761,189.16,189.08,38.83356756]
[1735625736171,1.5435,189.16,189.1,38.83356756]
[1735625737102,1.5435,189.16,189.09,15.05668356]
[1735625737403,1.5435,189.16,189.07,15.05668356]
[1735625737697,1.5435,189.16,189.06,15.05668356]
[1735625737898,1.5435,189.16,189.07,15.8497114]
[1735625738302,1.5435,189.16,189.1,23.776884]
[1735625740807,1.5435,189.16,189.08,15.05668356]
[1735625741698,1.5435,189.2,189.11,15.05668356]
[1735625741908,1.5435,189.2,189.14,15.05668356]
[1735625742088,1.5435,189.2,189.15,23.776884]
[1735625742406,6.0326,189.26,189.17,23.776884]
[1735625742605,6.0326,189.26,189.17,38.83356756]
[1735625742997,20.0,189.23,189.16,15.05668356]
[1735625743198,20.0,189.23,189.17,23.776884]
[1735625743999,6.0326,189.26,189.17,23.776884]
[1735625744175,6.0326,189.26,189.17,38.83356756]
[1735625744900,6.0326,189.26,189.17,23.776884]
[1735625745291,20.0,189.23,189.17,38.83356756]
[1735625745916,6.0326,189.26,189.17,38.83356756]
[1735625746091,6.0326,189.26,189.19,23.776884]
[1735625747209,6.0326,189.26,189.18,0.7925608]
[1735625747617,6.0326,189.26,189.19,23.776884]
[1735625747818,20.0,189.27,189.21,23.776884]
[1735625749323,1.5435,189.28,189.21,38.83356756]
[1735625749717,1.5435,189.28,189.21,23.776884]
[1735625750719,20.0,189.27,189.21,23.776884]
[1735625750917,20.0,189.27,189.17,15.05668356]
[1735625751293,20.0,189.27,189.19,23.776884]
[1735625752305,20.0,189.27,189.15,0.79260787]
[1735625752506,20.0,189.27,189.13,15.84943021]
[1735625752720,1.3209,189.26,189.13,15.84943021]
[1735625753730,1.3209,189.26,189.13,0.79274665]
[1735625753936,1.3209,189.26,189.14,23.776884]
[1735625755224,20.0,189.22,189.09,15.05668356]
[1735625755520,20.0,189.22,189.1,23.776884]
[1735625755713,20.0,189.22,189.09,15.05668356]
[1735625755910,20.0,189.22,189.1,15.05668356]
[1735625756110,20.0,189.22,189.1,15.84964127]
[1735625756423,20.0,189.22,189.1,15.05668356]
[1735625756602,21.3212,189.22,189.1,15.05668356]
[1735625758525,21.3212,189.22,189.09,23.776884]
[1735625758721,1.5274,189.21,189.09,23.776884]
[1735625759028,1.5274,189.21,189.07,15.05668356]
[1735625759217,20.0,189.17,189.06,15.05668356]
[1735625759424,20.0,189.17,189.07,23.776884]
[1735625759817,20.0,189.17,189.07,38.83356756]
[1735625761007,20.0,189.17,189.11,23.776884]
[1735625761402,6.0516,189.2,189.11,23.776884]
[1735625761626,6.0516,189.2,189.08,15.05668356]
[1735625762123,20.0,189.17,189.09,39.62659239]
[1735625762330,20.0,189.17,189.11,23.776884]
[1735625763313,20.0,189.17,189.08,15.05668356]
[1735625763514,20.0,189.17,189.07,15.05668356]
[1735625764843,20.0,189.17,189.09,23.776884]
[1735625765437,20.0,189.17,189.08,23.776884]
[1735625765636,1.5274,189.16,189.04,15.05668356]
[1735625766137,1.5274,189.16,189.05,23.776884]
[1735625766317,2.849,189.16,189.05,23.776884]
[1735625767551,2.849,189.16,189.05,38.83356756]
[1735625767863,2.849,189.16,189.05,23.776884]
[1735625768235,20.0,189.12,189.01,15.05668356]
[1735625768430,20.0,189.12,189.0,15.05668356]
[1735625768928,20.0,189.07,188.99,0.79334024]
[1735625769137,20.0,189.07,188.97,15.05668356]
[1735625769347,20.0,189.07,188.98,23.776884]
[1735625769550,20.0,189.07,188.97,15.85013365]
[1735625769754,20.0,189.07,188.97,0.79345009]
[1735625769919,20.0,189.07,188.98,23.776884]
[1735625770129,20.0,189.07,188.97,0.79345009]
[1735625772260,20.0,189.07,188.98,23.776884]
[1735625774964,20.0,189.07,188.98,38.83356756]
[1735625779868,20.0,189.07,188.98,23.776884]
[1735625780268,20.0,189.07,188.98,33.48265612]
[1735625782638,20.0,189.07,188.98,23.776884]
[1735625784166,20.0,189.07,188.98,33.48265612]
[1735625784363,20.0,189.07,189.0,23.776884]
[1735625785374,20.0,189.07,189.0,33.48265612]
[1735625785944,20.0,189.07,189.0,23.776884]
[1735625786344,20.0,189.07,188.98,9.70577212]
[1735625787272,6.0516,189.1,188.99,23.776884]
[1735625787458,6.0516,189.1,188.99,34.27606731]
[1735625788176,20.0,189.07,188.99,24.57029519]
[1735625788374,20.0,189.07,188.97,0.79339681]
[1735625788574,20.0,189.07,188.98,23.776884]
[1735625789577,20.0,189.07,188.95,9.70577212]
[1735625789989,20.0,189.07,188.96,23.776884]
[1735625790296,20.0,189.07,188.96,34.2762074]
[1735625793219,20.0,189.07,188.98,9.70577212]
[1735625793371,20.0,189.07,188.99,33.48265612]
[1735625793566,20.0,189.07,189.0,24.57023173]
[1735625794191,6.0516,189.1,189.02,23.776884]
[1735625798490,6.0516,189.1,189.02,33.48265612]
[1735625798794,6.0516,189.1,189.02,10.4990506]
[1735625799893,6.0516,189.1,188.99,13.2275]
[1735625800196,20.0,189.07,189.0,9.70577212]
[1735625800395,20.0,189.07,188.97,9.70577212]
[1735625801296,20.0,189.07,188.98,23.776884]
[1735625802596,20.0,189.07,188.98,33.48265612]
[1735625802803,20.0,189.07,188.98,34.27602612]
[1735625804300,20.0,189.07,188.98,24.570254]
[1735625804520,20.0,189.07,188.98,23.776884]
[1735625805714,20.0,189.07,189.0,23.776884]
[1735625805916,6.0516,189.1,189.01,9.70577212]
[1735625806631,6.0516,189.1,188.99,9.70577212]
[1735625806805,20.0,189.07,188.97,9.70577212]
[1735625806996,20.0,189.07,188.98,0.79346733]
[1735625808722,20.0,189.07,188.99,23.776884]
[1735625808927,20.0,189.07,188.99,33.48265612]
[1735625809227,6.0516,189.1,189.02,23.776884]
[1735625814132,1.5274,189.11,189.02,33.48265612]
[1735625814339,1.5274,189.11,189.04,23.776884]
[1735625814827,1.5274,189.11,189.03,23.776884]
[1735625815198,1.5274,189.11,189.02,23.776884]
[1735625818236,20.0,189.12,189.03,9.70577212]
[1735625818539,20.0,189.12,189.03,10.49894701]
[1735625819660,20.0,189.12,189.03,0.79317489]
[1735625820022,20.0,189.12,189.02,41.37395612]
[1735625820444,20.0,189.12,189.02,31.668184]
[1735625820651,20.0,189.12,189.03,0.79318181]
[1735625821036,20.0,189.12,189.02,41.37395612]
[1735625821223,20.0,189.12,189.01,10.49893499]
[1735625821424,20.0,189.12,189.01,0.79316287]
[1735625821948,20.0,189.12,189.02,23.776884]
[1735625822828,20.0,189.12,189.01,0.79316287]
[1735625823040,1.5003,189.11,189.01,0.79316287]
[1735625823954,1.5003,189.11,189.02,23.776884]
[1735625825634,1.5003,189.11,189.04,23.776884]
[1735625826155,6.1548,189.15,189.03,0.79322126]
[1735625826156,1.5003,189.16,189.08,23.776884]
[1735625826954,21.5003,189.16,189.08,33.48265612]
[1735625827330,1.5003,189.16,189.1,23.776884]
[1735625827535,6.0649,189.19,189.12,23.776884]
[1735625828056,6.0649,189.19,189.12,24.56972322]
[1735625828230,20.0,189.2,189.12,24.56972322]
[1735625828845,20.0,189.2,189.11,23.776884]
[1735625829065,1.5003,189.21,189.11,23.776884]
[1735625829664,20.0,189.2,189.1,23.776884]
[1735625829866,20.0,189.2,189.11,0.79290427]
[1735625832454,20.0,189.2,189.11,10.49867639]
[1735625833239,20.0,189.2,189.11,24.56978827]
[1735625833452,20.0,189.2,189.12,23.776884]
[1735625834534,20.0,189.2,189.14,23.776884]
[1735625835665,20.0,189.2,189.12,9.70577212]
[1735625835831,20.0,189.2,189.13,23.776884]
[1735625838065,20.0,189.2,189.13,33.48265612]
[1735625838237,20.0,189.2,189.15,23.776884]
[1735625839461,1.5075,189.26,189.19,23.776884]
[1735625840263,1.5075,189.26,189.19,33.48265612]
[1735625840469,20.0,189.25,189.19,33.48265612]
[1735625840666,1.5075,189.26,189.21,23.776884]
[1735625841039,20.0,189.29,189.21,23.776884]
[1735625841666,1.5075,189.31,189.19,9.70577212]
[1735625842270,20.0,189.29,189.2,9.70577212]
[1735625842563,20.0,189.29,189.21,23.776884]
[1735625842765,20.0,189.29,189.21,10.4982172]
[1735625843771,20.0,189.29,189.21,23.776884]
[1735625843964,20.0,189.29,189.22,23.776884]
[1735625844267,20.0,189.29,189.19,9.70577212]
[1735625844447,20.0,189.29,189.2,33.48265612]
[1735625845173,20.0,189.29,189.21,9.70577212]
[1735625845374,20.0,189.29,189.22,23.776884]
[1735625846275,20.0,189.29,189.22,33.48265612]
[1735625846441,1.5075,189.31,189.27,23.776884]
[1735625846647,1.6582,189.36,189.27,23.776884]
[1735625846979,20.0,189.34,189.25,0.79222969]
[1735625847473,20.0,189.34,189.26,23.776884]
[1735625847843,1.6582,189.36,189.26,23.776884]
[1735625848669,20.0,189.34,189.27,9.70577212]
[1735625848870,20.0,189.34,189.26,10.49798173]
[1735625849774,20.0,189.34,189.26,9.70577212]
[1735625850578,1.6582,189.36,189.21,19.2515]
[1735625850579,1.6582,189.36,189.28,23.776884]
[1735625852075,1.6582,189.36,189.26,9.70577212]
[1735625852252,1.6582,189.36,189.25,9.70577212]
[1735625852457,1.6582,189.36,189.26,0.79224087]
[1735625852778,1.6582,189.36,189.27,23.776884]
[1735625852972,1.6582,189.36,189.27,33.48265612]
[1735625853492,1.6582,189.36,189.28,10.49791803]
[1735625853994,1.6582,189.36,189.3,23.776884]
[1735625854373,1.6582,189.36,189.3,24.56895776]
[1735625854566,1.6582,189.36,189.3,34.27472988]
[1735625854787,1.6582,189.36,189.3,24.56895776]
[1735625855101,1.6582,189.36,189.3,10.49788095]
[1735625855504,20.0,189.37,189.3,10.49788095]
[1735625855699,6.1548,189.4,189.3,10.49788095]
[1735625855907,1.6582,189.41,189.33,33.48265612]
[1735625856412,1.6582,189.41,189.35,33.48265612]
[1735625856779,7.813,189.45,189.35,33.48265612]
[1735625857909,1.6582,189.45,189.38,9.70577212]
[1735625858098,1.6582,189.45,189.39,33.48265612]
[1735625858575,1.6582,189.45,189.39,23.776884]
[1735625859281,1.6582,189.45,189.36,10.49746921]
[1735625859903,1.6582,189.45,189.36,0.79169709]
[1735625860086,1.6582,189.45,189.36,23.776884]
[1735625860602,1.6582,189.45,189.34,23.776884]
[1735625860803,1.6582,189.45,189.36,23.776884]
[1735625861396,1.6582,189.45,189.33,10.49760574]
[1735625861719,20.0,189.41,189.3,10.49773498]
[1735625861897,20.0,189.41,189.3,0.79196286]
[1735625862088,1.5907,189.4,189.28,0.7921167]
[1735625862292,1.5907,189.4,189.27,9.70577212]
[1735625862725,20.0,189.35,189.24,16.9960963]
[1735625863016,20.0,189.35,189.24,10.4978963]
[1735625863508,20.0,189.35,189.25,9.70577212]
[1735625864291,20.0,189.35,189.25,38.89863177]
[1735625864616,20.0,189.35,189.27,23.776884]
[1735625865411,20.0,189.35,189.25,15.12174777]
[1735625865617,20.0,189.35,189.24,38.89863177]
[1735625866211,20.0,189.35,189.26,23.776884]
[1735625867591,1.5907,189.34,189.22,15.12174777]
[1735625867796,2.911,189.34,189.21,15.91405681]
[1735625868005,2.911,189.34,189.22,15.12174777]
[1735625868924,2.911,189.34,189.23,23.776884]
[1735625870129,2.911,189.34,189.2,6.4982]
[1735625870130,2.911,189.34,189.22,23.776884]
[1735625870497,2.911,189.34,189.2,15.12174777]
[1735625870729,20.0,189.3,189.17,15.91418134]
[1735625871017,20.0,189.3,189.18,23.776884]
[1735625871232,20.0,189.3,189.19,15.12174777]
[1735625871432,20.0,189.3,189.2,15.12174777]
[1735625872413,1.5907,189.29,189.18,15.12174777]
[1735625872619,1.5907,189.29,189.17,15.12174777]
[1735625873127,1.5907,189.29,189.18,23.776884]
[1735625873826,1.5907,189.29,189.18,15.12174777]
[1735625874123,1.5907,189.29,189.2,23.776884]
[1735625874296,1.5907,189.29,189.22,23.776884]
[1735625874505,1.5907,189.29,189.22,38.89863177]
[1735625874822,1.5907,189.29,189.23,23.776884]
[1735625876025,1.5907,189.29,189.2,15.12174777]
[1735625876411,1.5907,189.29,189.21,23.776884]
[1735625877220,1.5907,189.29,189.21,15.12174777]
[1735625877527,1.5907,189.29,189.23,23.776884]
[1735625878603,1.5907,189.29,189.23,15.12174777]
[1735625878805,1.5907,189.29,189.23,23.776884]
[1735625879097,20.0,189.3,189.25,23.776884]
[1735625879302,20.0,189.3,189.25,38.89863177]
[1735625880220,7.7016,189.33,189.25,38.89863177]
[1735625880423,7.7016,189.33,189.22,14.00429495]
[1735625880424,7.7016,189.33,189.27,23.776884]
[1735625881229,1.5468,189.33,189.27,23.776884]
[1735625881434,1.5468,189.33,189.27,38.89863177]
[1735625881729,1.5468,189.37,189.29,23.776884]
[1735625881934,1.5468,189.37,189.29,15.12174777]
[1735625882303,20.0,189.35,189.3,23.776884]
[1735625882617,1.5468,189.42,189.34,23.776884]
[1735625882812,20.0,189.4,189.34,23.776884]
[1735625883125,20.0,189.4,189.33,23.776884]
[1735625883435,1.5468,189.42,189.33,23.776884]
[1735625884219,20.0,189.4,189.33,38.89863177]
[1735625884402,20.0,189.4,189.34,23.776884]
[1735625884729,20.0,189.4,189.34,15.12174777]
[1735625885129,1.5468,189.42,189.34,15.12174777]
[1735625885432,1.5468,189.42,189.36,15.12174777]
[1735625885825,1.5468,189.42,189.36,23.776884]
[1735625886030,1.5468,189.42,189.36,38.89863177]
[1735625886625,1.5468,189.42,189.36,23.776884]
[1735625886829,1.5468,189.42,189.34,15.12174777]
[1735625887052,1.5468,189.42,189.32,0.79194686]
[1735625887343,1.5468,189.42,189.3,15.12174777]
[1735625887713,1.5468,189.42,189.31,23.776884]
[1735625887913,2.8666,189.42,189.32,15.12174777]
[1735625888440,1.5468,189.42,189.33,23.776884]
[1735625889145,1.5468,189.42,189.29,15.12174777]
[1735625889312,1.5468,189.42,189.3,15.12174777]
[1735625889637,1.5468,189.42,189.31,15.12174777]
[1735625890047,1.5468,189.42,189.33,15.12174777]
[1735625890224,1.5468,189.42,189.35,23.776884]
[1735625890429,1.5468,189.42,189.35,38.89863177]
[1735625891845,1.5929,189.47,189.38,38.89863177]
[1735625892054,1.5929,189.47,189.38,39.69036645]
[1735625892740,1.5929,189.47,189.37,15.12174777]
[1735625892941,20.0,189.45,189.37,15.12174777]
[1735625893630,20.0,189.45,189.38,15.12174777]
[1735625893825,20.0,189.45,189.38,38.89863177]
[1735625894024,20.0,189.45,189.39,23.776884]
[1735625895646,20.0,189.45,189.4,23.776884]
[1735625895950,20.0,189.45,189.37,15.12174777]
[1735625896843,20.0,189.45,189.36,15.12174777]
[1735625897059,20.0,189.45,189.35,15.12174777]
[1735625897223,20.0,189.45,189.36,38.89863177]
[1735625897425,20.0,189.45,189.38,23.776884]
[1735625897619,20.0,189.45,189.37,15.12174777]
[1735625897849,21.3196,189.45,189.34,15.12174777]
[1735625898149,21.3196,189.45,189.33,15.12174777]
[1735625898376,21.3196,189.45,189.35,23.776884]
[1735625899082,21.3196,189.45,189.34,38.89863177]
[1735625900873,21.3196,189.45,189.34,23.776884]
[1735625901369,21.3196,189.45,189.32,15.12174777]
[1735625901868,21.3196,189.45,189.31,23.776884]
[1735625902054,20.0,189.4,189.28,15.12174777]
[1735625902257,20.0,189.4,189.31,9.67202995]
[1735625902445,20.0,189.4,189.33,23.776884]
[1735625904596,1.6022,189.44,189.38,23.776884]
[1735625905273,1.6022,189.44,189.39,9.67202995]
[1735625905572,1.6022,189.44,189.4,23.776884]
[1735625908279,6.1548,189.48,189.4,23.776884]
[1735625908782,21.1587,189.57,189.48,23.776884]
[1735625908783,1.5606,189.56,189.48,23.776884]
[1735625908951,1.5606,189.56,189.48,38.87778336]
[1735625909158,1.5606,189.56,189.45,15.10089936]
[1735625909356,20.0,189.54,189.44,15.10089936]
[1735625909785,20.0,189.54,189.45,23.776884]
[1735625911153,20.0,189.54,189.45,15.10089936]
[1735625911383,1.319,189.53,189.43,15.10089936]
[1735625911561,1.319,189.53,189.42,15.10089936]
[1735625911767,1.319,189.53,189.43,15.89246813]
[1735625911968,1.319,189.53,189.44,23.776884]
[1735625912481,1.319,189.53,189.41,15.10089936]
[1735625912980,1.319,189.53,189.42,38.87778336]
[1735625913356,1.5606,189.56,189.48,15.10089936]
[1735625913559,1.5606,189.56,189.49,23.776884]
[1735625913758,1.5606,189.56,189.48,23.776884]
[1735625914267,1.5606,189.56,189.47,23.776884]
[1735625915184,1.5606,189.56,189.46,23.776884]
[1735625916583,1.5606,189.56,189.46,38.87778336]
[1735625916778,1.5606,189.56,189.47,15.10089936]
[1735625917111,1.5606,189.56,189.46,38.87778336]
[1735625917686,1.5606,189.56,189.46,23.776884]
[1735625919183,1.5606,189.56,189.44,15.10089936]
[1735625919184,20.0,189.54,189.44,15.10089936]
[1735625920793,20.0,189.54,189.46,15.10089936]
[1735625921309,20.0,189.54,189.45,15.89233413]
[1735625921467,20.0,189.54,189.45,24.56831877]
[1735625922302,20.0,189.54,189.44,15.10089936]
[1735625924205,20.0,189.54,189.4,0.79146586]
[1735625924393,1.5732,189.53,189.38,15.89247768]
[1735625924616,20.0,189.49,189.39,23.776884]
[1735625928810,20.0,189.49,189.35,14.7341]
[1735625928811,1.5732,189.48,189.37,15.10089936]
[1735625928980,2.8926,189.48,189.37,15.10089936]
[1735625929390,2.8926,189.48,189.37,23.776884]
[1735625930009,2.8926,189.48,189.36,23.776884]
[1735625930304,2.8926,189.48,189.34,38.87778336]
[1735625930488,2.8926,189.48,189.34,39.66970526]
[1735625930913,2.8926,189.48,189.36,23.776884]
[1735625938213,2.8926,189.48,189.36,33.44417148]
[1735625938422,2.8926,189.48,189.36,9.66728748]
[1735625938593,2.8926,189.48,189.38,9.66728748]
[1735625938796,2.8926,189.48,189.38,10.4590491]
[1735625939107,1.5732,189.48,189.4,33.44417148]
[1735625939310,1.5732,189.48,189.42,23.776884]
[1735625939638,1.5732,189.48,189.4,9.66728748]
[1735625939825,1.5732,189.48,189.4,33.44417148]
[1735625940319,1.5732,189.48,189.41,23.776884]
[1735625942324,1.5732,189.48,189.36,0.79170543]
[1735625942325,1.5732,189.48,189.38,15.09902747]
[1735625942616,1.5732,189.48,189.39,15.09902747]
[1735625943000,1.5732,189.48,189.38,15.09902747]
[1735625943202,1.5732,189.48,189.37,15.09902747]
[1735625943393,1.5732,189.48,189.38,15.09902747]
[1735625944233,1.5732,189.48,189.39,38.87591147]
[1735625944389,1.5732,189.48,189.41,38.87591147]
[1735625944603,6.1548,189.52,189.44,15.09902747]
[1735625944820,1.6636,189.53,189.46,23.776884]
[1735625945333,1.6636,189.53,189.48,23.776884]
[1735625945820,1.6636,189.53,189.48,38.87591147]
[1735625946193,20.0,189.54,189.48,38.87591147]
[1735625946616,1.6636,189.57,189.5,15.09902747]
[1735625946834,1.6636,189.57,189.51,23.776884]
[1735625947157,7.8184,189.62,189.53,15.09902747]
[1735625947300,7.8184,189.62,189.55,23.776884]
[1735625949125,7.8184,189.62,189.51,15.89011343]
[1735625949308,7.8184,189.62,189.53,23.776884]
[1735625949903,20.0,189.59,189.51,38.87591147]
[1735625950091,20.0,189.59,189.51,23.776884]
[1735625950422,20.0,189.59,189.52,23.776884]
[1735625952210,20.0,189.59,189.5,15.09902747]
[1735625952825,20.0,189.59,189.51,23.776884]
[1735625953019,20.0,189.59,189.51,38.87591147]
[1735625957229,20.0,189.59,189.51,23.776884]
[1735625957826,20.0,189.59,189.48,15.09902747]
[1735625958029,20.0,189.59,189.49,0.79133794]
[1735625958229,20.0,189.59,189.5,23.776884]
[1735625958609,20.0,189.59,189.5,38.87591147]
[1735625959233,20.0,189.59,189.5,39.66716328]
[1735625960129,20.0,189.59,189.5,23.776884]
[1735625961823,20.0,189.59,189.48,15.09902747]
[1735625962022,20.0,189.59,189.47,15.09902747]
[1735625962351,1.5684,189.58,189.43,15.09902747]
[1735625962538,1.5684,189.58,189.44,23.776884]
[1735625962920,1.5684,189.58,189.46,23.776884]
[1735625963135,1.5684,189.58,189.47,15.89049457]
[1735625963331,1.5684,189.58,189.49,38.87591147]
[1735625963541,1.5684,189.58,189.51,23.776884]
[1735625963841,1.5684,189.58,189.51,23.72031688]
[1735625964247,20.0,189.59,189.52,15.09902747]
[1735625964941,7.7232,189.62,189.52,15.09902747]
[1735625965965,7.7232,189.62,189.53,23.776884]
[1735625966129,7.7232,189.62,189.53,39.66706882]
[1735625967353,1.5684,189.62,189.55,23.776884]
[1735625969344,1.5684,189.62,189.53,15.09902747]
[1735625969545,1.5684,189.62,189.54,23.776884]
[1735625971360,1.5684,189.62,189.54,15.09902747]
[1735625971563,1.5684,189.62,189.54,15.89015659]
[1735625972255,1.5684,189.62,189.54,10.43988841]
[1735625974859,1.5684,189.62,189.55,9.64875929]
[1735625975656,1.5684,189.62,189.54,23.776884]
[1735625976453,1.5684,189.62,189.55,10.4398484]
[1735625977854,1.5684,189.62,189.52,0.79106923]
[1735625978041,1.5684,189.62,189.49,2.41400382]
[1735625978245,1.5684,189.62,189.48,9.64875929]
[1735625978448,20.0,189.61,189.5,9.64875929]
[1735625979185,20.0,189.61,189.52,9.64875929]
[1735625979473,1.5684,189.62,189.56,23.776884]
[1735625980459,7.6,189.66,189.58,23.776884]
[1735625980672,7.6,189.66,189.58,33.42564329]
[1735625981543,1.5954,189.66,189.58,33.42564329]
[1735625982165,1.5954,189.66,189.58,23.776884]
[1735625982567,1.5954,189.66,189.56,15.07097255]
[1735625982761,1.5954,189.66,189.55,15.07097255]
[1735625983068,1.5954,189.66,189.56,15.07097255]
[1735625983442,21.5954,189.66,189.56,23.776884]
[1735625983676,21.5954,189.66,189.56,38.84785655]
[1735625984559,21.5954,189.66,189.55,38.84785655]
[1735625985184,21.5954,189.66,189.57,23.776884]
[1735625986595,1.5954,189.66,189.57,23.776884]
[1735625987776,1.5954,189.66,189.56,15.07097255]
[1735625987968,1.5954,189.66,189.55,15.07097255]
[1735625988452,1.5954,189.66,189.55,23.776884]
[1735625989082,1.5954,189.66,189.55,15.07097255]
[1735625990483,1.5954,189.66,189.56,23.776884]
[1735625990677,1.5954,189.66,189.56,38.84785655]
[1735625998292,1.5954,189.66,189.58,38.84785655]
[1735625998588,1.5954,189.66,189.61,23.776884]
[1735625999282,1.5954,189.66,189.6,23.776884]
[1735625999868,1.5954,189.66,189.61,15.07097255]
[1735626000163,1.5954,189.66,189.6,15.86183102]
[1735626000690,6.1548,189.7,189.62,23.776884]
[1735626000876,6.1548,189.7,189.62,38.84785655]
[1735626002296,6.1548,189.7,189.61,23.776884]
[1735626002477,6.1548,189.7,189.61,33.41751386]
[1735626002787,6.1548,189.7,189.62,9.64062986]
[1735626004194,6.1548,189.7,189.61,10.43141498]
[1735626004370,6.1548,189.7,189.62,9.64062986]
[1735626004573,1.622,189.71,189.62,9.64062986]
[1735626005189,1.622,189.71,189.64,9.64062986]
[1735626005489,7.7768,189.75,189.67,23.776884]
[1735626005679,7.7768,189.75,189.67,9.64062986]
[1735626005884,1.622,189.75,189.69,9.64062986]
[1735626006871,1.622,189.75,189.7,9.64062986]
[1735626007694,1.622,189.75,189.69,33.41751386]
[1735626007873,7.7768,189.8,189.72,33.41751386]
[1735626008079,1.622,189.8,189.73,9.64062986]
[1735626008283,1.622,189.8,189.74,23.776884]
[1735626008580,1.622,189.8,189.71,9.64062986]
[1735626008892,1.622,189.8,189.69,29.64062986]
[1735626009088,1.622,189.8,189.68,9.64062986]
[1735626009296,6.1548,189.79,189.68,9.64062986]
[1735626009674,6.1548,189.79,189.69,9.64062986]
[1735626010197,6.1548,189.79,189.7,23.776884]
[1735626010386,6.1548,189.79,189.7,33.41751386]
[1735626011903,6.1548,189.79,189.7,9.64062986]
[1735626012293,6.1548,189.79,189.7,23.776884]
[1735626012490,20.0,189.76,189.64,9.64062986]
[1735626012693,1.5924,189.75,189.64,9.64062986]
[1735626012897,1.5924,189.75,189.65,23.776884]
[1735626013110,1.5924,189.75,189.65,33.41751386]
[1735626013400,1.5924,189.75,189.67,9.64062986]
[1735626013600,1.5924,189.75,189.68,23.776884]
[1735626013993,1.5924,189.75,189.67,23.776884]
[1735626014189,1.5924,189.75,189.67,33.41751386]
[1735626014492,7.7472,189.79,189.71,23.776884]
[1735626014721,7.7472,189.79,189.71,33.41751386]
[1735626014896,7.7472,189.79,189.71,23.776884]
[1735626015199,1.5924,189.79,189.73,23.776884]
[1735626015379,1.5924,189.79,189.73,33.41751386]
[1735626015908,7.7472,189.84,189.75,9.64062986]
[1735626016095,7.7472,189.84,189.76,23.776884]
[1735626017228,1.5924,189.84,189.77,15.83331492]
[1735626017383,1.5924,189.84,189.78,15.04313025]
[1735626017587,6.1548,189.87,189.8,23.776884]
[1735626017909,1.61,189.89,189.83,23.776884]
[1735626018303,1.61,189.89,189.82,15.04313025]
[1735626018520,7.7648,189.99,189.84,38.82001425]
[1735626018719,7.7648,189.99,189.86,23.776884]
[1735626019023,20.0,189.96,189.86,23.776884]
[1735626019399,20.0,189.96,189.83,15.04313025]
[1735626019597,1.3159,189.98,189.84,23.776884]
[1735626020231,20.0,189.96,189.84,23.776884]
[1735626020590,20.0,189.96,189.85,23.776884]
[1735626021020,20.0,189.96,189.84,38.82001425]
[1735626021226,7.7648,189.99,189.87,23.776884]
[1735626021610,20.0,189.96,189.85,15.04313025]
[1735626022007,20.0,189.96,189.85,38.82001425]
[1735626022208,7.7648,189.99,189.88,15.04313025]
[1735626022511,7.7648,189.99,189.91,23.776884]
[1735626022900,7.7648,189.99,189.89,15.04313025]
[1735626023409,7.7648,189.99,189.91,23.776884]